bitfinex/quotes_ETHUSD_20260102
["timestamp","ask_amount","ask_price","bid_price","bid_amount"]
[1767378306194,2.50045161,3123.8,3123.0,0.001]
[1767378306847,2.50045161,3123.8,3123.0,3.20301886]
[1767378307284,0.84,3123.7,3123.1,0.01608849]
[1767378307587,0.84,3123.7,3123.0,0.191116]
[1767378308079,5.47610697,3124.1,3123.4,0.001]
[1767378308380,0.84,3123.7,3123.4,0.001]
[1767378308984,3.11313783,3123.7,3123.4,0.001]
[1767378309948,2.27313783,3123.6,3123.4,0.001]
[1767378310472,2.27313783,3123.6,3123.0,0.001]
[1767378311976,2.27313783,3123.4,3123.0,0.001]
[1767378312476,2.27313783,3123.4,3122.8,0.001]
[1767378313280,2.27313783,3123.4,3122.2,0.001]
[1767378313460,2.27313783,3123.2,3122.2,0.001]
[1767378313653,2.27313783,3123.2,3122.2,3.20383067]
[1767378313853,2.27313783,3123.2,3122.2,0.001]
[1767378314062,2.27313783,3123.0,3122.2,0.001]
[1767378316378,5.22958501,3123.3,3122.2,0.001]
[1767378316379,2.27313783,3122.8,3122.2,0.001]
[1767378316557,0.84,3122.7,3122.2,0.001]
[1767378317274,0.84,3122.7,3122.2,0.01711258]
[1767378317471,0.84,3122.7,3122.2,0.001]
[1767378318065,3.11313783,3122.6,3122.2,0.001]
[1767378318269,2.58445161,3122.5,3122.2,0.001]
[1767378318583,5.78705136,3122.5,3122.2,0.001]
[1767378318790,2.27313783,3122.4,3122.2,0.001]
[1767378321393,2.27313783,3122.3,3121.6,3.2034814]
[1767378322290,2.27313783,3122.2,3121.5,0.001]
[1767378322488,2.27313783,3122.0,3121.5,0.001]
[1767378322992,0.84,3122.1,3121.5,0.001]
[1767378322993,2.27313783,3121.8,3121.5,0.001]
[1767378324604,2.27313783,3121.8,3120.7,3.20440926]
[1767378324805,2.27313783,3121.8,3120.7,6.40881852]
[1767378325017,2.27313783,3121.6,3120.9,0.001]
[1767378325217,2.27313783,3121.4,3120.9,0.001]
[1767378326417,0.84,3121.5,3120.9,0.001]
[1767378326610,3.14108712,3121.7,3120.9,0.193116]
[1767378326828,0.84,3121.7,3121.0,0.192116]
[1767378327202,2.40801221,3121.6,3120.9,0.001]
[1767378327405,0.84,3121.6,3121.0,6.6003057]
[1767378327636,0.84,3121.6,3121.0,3.39620446]
[1767378328146,0.84,3121.6,3121.0,6.4081897]
[1767378328336,0.84,3121.6,3121.0,3.20408846]
[1767378328542,0.84,3121.6,3121.0,6.6003057]
[1767378328730,3.51392329,3122.5,3121.1,0.192116]
[1767378328731,5.61102784,3122.1,3121.1,0.192116]
[1767378328923,1.40110278,3122.0,3121.1,0.192116]
[1767378329119,1.40110278,3122.0,3121.2,6.40779186]
[1767378329320,2.25112763,3122.4,3121.3,0.20825271]
[1767378329548,0.84,3122.3,3121.3,0.192116]
[1767378330156,0.84,3122.3,3121.3,0.20824655]
[1767378330370,2.25112763,3123.3,3122.0,0.192116]
[1767378330648,2.47624039,3123.3,3122.2,0.192116]
[1767378331017,0.22511276,3123.3,3122.2,0.192116]
[1767378331221,2.25112763,3123.5,3122.3,6.59765038]
[1767378331451,2.25112763,3123.5,3122.4,0.192116]
[1767378332140,2.25112763,3123.5,3122.3,6.40553438]
[1767378333249,2.25112763,3123.3,3122.1,3.20297235]
[1767378333968,2.25112763,3123.3,3122.1,6.4059447]
[1767378334162,2.25112763,3123.1,3122.2,0.65980607]
[1767378334453,0.90546366,3123.2,3122.1,3.20297235]
[1767378334454,2.25112763,3122.9,3122.1,3.20297235]
[1767378335228,2.25112763,3122.9,3121.7,9.80221437]
[1767378335450,2.25112763,3122.9,3121.8,0.192116]
[1767378335653,2.25112763,3123.6,3121.8,0.20823371]
[1767378335840,2.25112763,3123.4,3122.0,0.192116]
[1767378336046,2.25112763,3123.2,3121.7,6.4067156]
[1767378336227,1.06531276,3123.5,3121.7,6.4067156]
[1767378336228,2.25112763,3123.0,3121.7,6.4067156]
[1767378336430,2.25112763,3123.0,3121.6,0.192116]
[1767378336431,2.25112763,3122.8,3121.6,3.20345806]
[1767378336656,2.25112763,3122.6,3121.6,3.20345806]
[1767378336961,0.30911276,3122.5,3121.6,6.40694345]
[1767378337376,0.30911276,3122.5,3121.5,0.192116]
[1767378337558,2.25112763,3122.6,3121.5,0.192116]
[1767378337734,2.25112763,3122.6,3121.6,0.20823988]
[1767378338335,3.09112763,3122.6,3121.6,0.20823988]
[1767378338756,3.09112763,3122.6,3121.6,0.192116]
[1767378339291,3.09112763,3122.6,3121.7,6.40676554]
[1767378339443,3.09112763,3122.6,3121.7,7.06826608]
[1767378340332,2.25112763,3122.5,3121.7,7.06826608]
[1767378341165,0.84,3122.6,3121.8,0.20823781]
[1767378341463,0.002,3122.9,3121.9,6.4063551]
[1767378341671,2.25312763,3122.9,3121.9,6.4063551]
[1767378341857,2.25312763,3122.9,3122.0,0.65984711]
[1767378342744,2.25312763,3122.9,3121.9,6.4063551]
[1767378343348,2.25112763,3122.8,3121.8,6.4065603]
[1767378345147,0.002,3122.9,3121.9,0.2082332]
[1767378345352,0.002,3122.9,3122.0,9.80134085]
[1767378345572,0.002,3122.9,3122.1,0.99785891]
[1767378346371,0.002,3122.9,3122.1,0.98174581]
[1767378346568,2.25112763,3123.4,3122.5,0.192116]
[1767378346764,2.25112763,3123.4,3122.2,0.20622756]
[1767378347080,2.56024039,3123.4,3122.2,0.20622756]
[1767378347648,2.56024039,3123.4,3122.3,6.40553438]
[1767378347989,2.25112763,3123.3,3122.3,3.20276719]
[1767378348662,2.25112763,3123.3,3122.2,3.20284821]
[1767378349361,2.25112763,3123.3,3122.3,0.01610592]
[1767378349561,2.25112763,3123.1,3122.3,0.01610592]
[1767378349750,6.29317694,3123.0,3122.3,3.21885791]
[1767378350461,2.25112763,3122.9,3121.9,3.20315563]
[1767378351288,2.25112763,3122.9,3122.0,3.20302364]
[1767378351653,2.25112763,3122.7,3121.7,3.20338277]
[1767378351870,2.79646583,3122.7,3121.7,6.40676554]
[1767378354574,2.25112763,3122.6,3121.7,6.40676554]
[1767378354771,0.84,3122.5,3121.7,6.40676554]
[1767378354967,0.83839872,3122.5,3121.7,6.40676554]
[1767378355775,2.25112763,3122.4,3121.7,6.40676554]
[1767378356073,2.25112763,3122.4,3121.7,7.38690892]
[1767378356457,0.83839872,3122.5,3121.7,7.38690892]
[1767378357380,0.83839872,3122.5,3121.7,10.78040769]
[1767378357757,0.83839872,3122.5,3121.8,0.20623781]
[1767378358071,0.83839872,3122.5,3121.8,0.190116]
[1767378358278,0.83839872,3122.5,3121.9,0.01612028]
[1767378358474,0.83839872,3122.5,3122.0,6.4061499]
[1767378359363,0.83839872,3122.5,3122.1,0.0161172]
[1767378359667,0.83839872,3122.5,3122.0,6.4061499]
[1767378360674,3.20666381,3122.5,3121.9,6.4063551]
[1767378361869,0.84,3122.4,3122.0,0.01611874]
[1767378362763,0.84,3122.4,3122.1,3.20297235]
[1767378363266,0.84,3122.4,3122.2,0.01611668]
[1767378363468,0.002,3123.7,3123.0,0.190116]
[1767378363763,2.37026509,3123.7,3122.7,0.190116]
[1767378363974,2.37026509,3123.7,3122.7,0.20989954]
[1767378365365,2.37026509,3123.7,3122.8,6.40450876]
[1767378365664,2.37026509,3123.7,3122.7,0.01978354]
[1767378365665,2.36826509,3123.5,3122.7,0.01978354]
[1767378366006,0.002,3123.7,3122.7,0.01978354]
[1767378366007,2.36826509,3123.3,3122.7,3.22213489]
[1767378366163,2.36826509,3123.3,3122.7,0.01978354]
[1767378366504,2.36826509,3123.3,3122.7,3.22213913]
[1767378366667,2.36826509,3123.3,3122.4,3.36948532]
[1767378366862,2.36826509,3123.1,3122.5,3.20254701]
[1767378370369,2.36826509,3123.1,3122.0,0.190116]
[1767378370706,0.84,3123.0,3122.0,0.20622756]
[1767378372798,3.20826509,3123.0,3122.1,6.4059447]
[1767378373000,3.20826509,3123.0,3122.2,0.98152427]
[1767378373914,2.36826509,3122.9,3122.2,0.98152427]
[1767378374809,2.36826509,3122.9,3122.3,6.40553438]
[1767378375317,2.36826509,3122.9,3122.3,3.20276719]
[1767378375512,2.36826509,3122.9,3122.3,6.40553438]
[1767378375688,2.36826509,3122.9,3122.3,3.20276719]
[1767378376028,2.36826509,3122.9,3122.3,6.40553438]
[1767378376583,2.36826509,3122.9,3122.3,3.20276719]
[1767378376781,2.36826509,3122.9,3122.1,0.001]
[1767378376983,2.36826509,3122.9,3122.1,0.98113963]
[1767378377386,2.36826509,3122.8,3122.1,0.001]
[1767378377792,2.36826509,3122.8,3121.9,0.001]
[1767378378094,2.36826509,3122.8,3121.5,0.001]
[1767378378785,2.36826509,3122.6,3121.6,3.20445712]
[1767378379015,2.36826509,3122.4,3121.6,3.20445712]
[1767378379323,2.36826509,3122.2,3121.6,3.20445712]
[1767378379822,0.84,3122.1,3121.7,0.01612643]
[1767378380203,0.84,3122.0,3121.7,0.01612643]
[1767378380918,0.84,3122.0,3121.7,3.21947571]
[1767378381513,0.84,3122.0,3121.7,3.20334928]
[1767378381699,3.20826509,3122.0,3121.6,3.20445182]
[1767378382028,3.20826509,3122.0,3121.1,3.20392073]
[1767378382029,2.36826509,3121.9,3121.1,3.20392073]
[1767378383318,2.36826509,3121.8,3121.0,0.001]
[1767378383523,2.36826509,3121.8,3121.6,0.001]
[1767378385026,2.36826509,3121.8,3121.0,0.001]
[1767378385341,2.36826509,3121.6,3121.0,0.001]
[1767378385641,2.36826509,3121.4,3121.0,0.001]
[1767378386341,0.84,3121.3,3121.0,0.001]
[1767378387305,3.20337401,3121.3,3121.0,0.001]
[1767378388642,2.36337401,3121.7,3121.0,0.001]
[1767378388944,3.20337401,3121.7,3121.0,0.001]
[1767378389704,2.48016104,3121.6,3121.0,0.001]
[1767378392817,5.68210782,3123.1,3121.1,0.193116]
[1767378393045,2.48016104,3122.9,3121.2,0.20924092]
[1767378393535,2.48016104,3122.9,3121.4,0.193116]
[1767378393734,3.32016104,3122.8,3121.4,0.20923886]
[1767378393947,3.32016104,3122.8,3121.6,0.193116]
[1767378394246,2.48016104,3122.7,3121.6,0.193116]
[1767378394544,2.48016104,3122.5,3121.3,6.40758658]
[1767378394909,2.48016104,3122.5,3121.4,0.193116]
[1767378395123,2.48016104,3122.5,3121.6,0.193116]
[1767378395532,3.32016104,3122.8,3121.8,0.193116]
[1767378395738,3.20187006,3123.2,3121.8,0.193116]
[1767378395942,0.002,3124.9,3123.4,0.193116]
[1767378396142,2.52216488,3124.7,3123.5,0.84]
[1767378396343,2.52216488,3124.7,3123.4,0.193116]
[1767378396344,2.48216104,3124.7,3123.4,0.193116]
[1767378396521,2.48016104,3124.6,3123.4,0.01978331]
[1767378397621,2.48016104,3124.6,3123.5,3.20153673]
[1767378397622,2.48016104,3124.5,3123.5,3.20153673]
[1767378399246,0.002,3124.1,3123.4,3.22141006]
[1767378399423,2.73037714,3124.1,3123.4,3.2214218]
[1767378399619,2.48216104,3124.1,3123.4,0.01978331]
[1767378401142,2.48016104,3124.0,3123.4,0.01978331]
[1767378401843,2.48016104,3124.0,3123.0,3.2020424]
[1767378402019,2.48016104,3123.9,3123.0,3.2020424]
[1767378402221,2.48016104,3123.7,3123.0,3.2020424]
[1767378402847,2.48016104,3123.7,3122.7,1.033116]
[1767378403056,2.48016104,3123.7,3123.2,3.20178137]
[1767378403232,2.48016104,3123.7,3122.8,6.40450876]
[1767378404547,2.48016104,3123.7,3122.8,6.42060186]
[1767378404756,2.52017896,3123.6,3122.7,3.20231702]
[1767378404916,2.52017896,3123.6,3122.2,3.20278835]
[1767378405246,6.68390708,3123.7,3122.3,3.20267859]
[1767378405247,2.48016104,3123.4,3122.3,3.20267859]
[1767378405445,2.48016104,3123.4,3122.3,6.40544578]
[1767378405621,2.48016104,3123.2,3122.3,6.40544578]
[1767378407536,2.48016104,3123.1,3121.9,3.2030843]
[1767378407728,2.48016104,3123.1,3122.0,3.20302191]
[1767378408135,2.48016104,3123.1,3122.1,3.20295886]
[1767378409059,2.48016104,3123.1,3121.9,3.2031767]
[1767378409231,2.48016104,3122.9,3122.1,3.20297161]
[1767378410653,2.48016104,3122.9,3121.8,3.20328015]
[1767378410864,2.48016104,3122.9,3121.9,0.20923218]
[1767378412749,2.48016104,3122.9,3122.0,6.5992659]
[1767378412931,2.48016104,3122.9,3122.1,0.0161131]
[1767378413133,2.48016104,3122.9,3122.1,0.761651]
[1767378414430,2.48016104,3122.9,3122.1,0.7455379]
[1767378415455,2.48016104,3122.9,3122.2,3.21898133]
[1767378416657,2.48016104,3122.9,3122.2,6.4218511]
[1767378416833,2.48016104,3122.9,3122.2,3.21898133]
[1767378417464,2.48016104,3122.9,3122.2,6.4218511]
[1767378418055,2.48016104,3122.9,3122.2,3.21898133]
[1767378420455,2.25946286,3122.8,3121.8,0.001]
[1767378420761,2.29949103,3122.8,3121.8,0.001]
[1767378421763,2.25946286,3122.8,3121.8,0.001]
[1767378422064,2.25946286,3122.8,3121.8,3.20423765]
[1767378422267,2.25946286,3122.8,3121.8,0.001]
[1767378422467,2.25946286,3122.5,3121.8,0.001]
[1767378422766,2.25946286,3122.4,3121.8,0.001]
[1767378422961,2.25946286,3122.4,3121.5,0.001]
[1767378422962,2.25946286,3122.3,3121.5,0.001]
[1767378424258,2.25946286,3122.3,3121.5,3.20454366]
[1767378424760,2.25946286,3122.2,3121.6,3.20344808]
[1767378425067,2.25946286,3122.2,3121.6,3.52389289]
[1767378425372,2.25946286,3122.2,3121.6,6.72737828]
[1767378425941,3.20191947,3123.2,3121.7,0.194116]
[1767378425942,2.25946286,3122.5,3121.7,0.194116]
[1767378427056,2.25946286,3122.5,3121.8,3.20328015]
[1767378428971,8.66460842,3122.5,3121.7,0.194116]
[1767378429171,2.25946286,3122.4,3121.5,0.001]
[1767378429538,2.25946286,3122.2,3121.5,0.001]
[1767378430065,2.26146286,3122.2,3121.5,0.001]
[1767378430641,2.26146286,3122.2,3121.5,3.20455897]
[1767378430840,2.26146286,3122.2,3121.5,0.001]
[1767378431040,2.57160915,3122.2,3121.5,0.001]
[1767378431358,2.25946286,3122.1,3121.5,0.001]
[1767378432359,2.25946286,3122.7,3121.6,0.194116]
[1767378432947,2.25946286,3122.7,3122.1,0.01978172]
[1767378433352,2.25946286,3122.7,3122.1,3.22266213]
[1767378433549,2.25946286,3122.7,3122.1,7.06821495]
[1767378433879,0.16910636,3123.7,3122.3,2.45357886]
[1767378434078,2.26146286,3123.5,3122.3,2.45357886]
[1767378434569,0.002,3123.5,3122.3,2.45357886]
[1767378435346,0.002,3123.7,3122.8,2.45357886]
[1767378435566,0.002,3123.7,3122.9,0.24535789]
[1767378435968,2.26146286,3123.7,3122.9,0.24535789]
[1767378438075,2.26146286,3123.7,3123.0,3.20204931]
[1767378439874,2.25946286,3123.6,3122.9,6.64963073]
[1767378442872,0.002,3123.7,3122.9,12.30536143]
[1767378443176,0.002,3123.7,3123.1,2.45357886]
[1767378444480,0.002,3123.7,3123.2,0.84]
[1767378445259,0.002,3123.7,3123.3,3.20174174]
[1767378445670,0.002,3123.7,3123.3,6.40348348]
[1767378445888,0.002,3123.7,3123.3,3.20174174]
[1767378446091,0.002,3123.7,3123.4,0.40417417]
[1767378447280,0.002,3124.1,3123.5,2.3999264]
[1767378447682,2.38189634,3124.1,3123.4,0.40417417]
[1767378448591,2.38189634,3124.1,3123.4,3.60578832]
[1767378449458,2.25373918,3124.0,3123.4,3.60578832]
[1767378449662,2.25373918,3124.0,3123.0,3.78]
[1767378449892,2.25373918,3123.8,3123.0,3.78]
[1767378450194,2.25373918,3123.6,3123.0,3.78]
[1767378450983,2.25373918,3123.6,3122.9,0.001]
[1767378451931,2.25373918,3123.5,3122.9,0.001]
[1767378452282,3.11939095,3123.5,3122.9,0.001]
[1767378452489,2.25373918,3123.4,3122.9,0.001]
[1767378455396,2.20314718,3123.3,3122.9,0.001]
[1767378456192,5.40489127,3123.3,3122.9,0.001]
[1767378456388,2.25373918,3123.2,3122.9,0.001]
[1767378456708,2.25373918,3123.1,3122.4,3.20257824]
[1767378457208,2.25373918,3123.1,3122.3,3.20273472]
[1767378457399,2.25373918,3123.1,3122.2,4.04277787]
[1767378457599,2.25373918,3123.1,3122.3,3.20270279]
[1767378458184,2.25373918,3123.0,3122.3,3.20270279]
[1767378458395,2.25373918,3122.9,3122.2,3.20283601]
[1767378458912,2.25373918,3122.9,3122.2,6.40570578]
[1767378459113,3.20188607,3123.2,3122.2,6.40570578]
[1767378459114,2.25373918,3123.2,3122.3,2.48912927]
[1767378459318,2.25373918,3123.4,3122.3,2.48912927]
[1767378459608,0.002,3123.6,3122.8,2.48912927]
[1767378459782,2.25573918,3124.1,3123.5,0.01978474]
[1767378460509,2.25573918,3124.1,3123.5,3.22122494]
[1767378461013,0.002,3123.6,3123.5,3.22122494]
[1767378461216,2.25573918,3124.1,3123.5,3.22122494]
[1767378461397,2.25573918,3124.1,3123.5,6.42276167]
[1767378461919,2.25573918,3124.1,3123.5,3.22122494]
[1767378463107,2.25573918,3124.1,3123.5,3.86350646]
[1767378463513,2.25573918,3124.1,3123.5,0.66206626]
[1767378463689,2.25573918,3124.1,3123.5,3.22131565]
[1767378464909,0.002,3124.7,3123.6,2.48912927]
[1767378465990,5.45606168,3124.7,3123.7,3.32812927]
[1767378466416,2.25573918,3124.7,3123.7,3.32812927]
[1767378466712,5.4560533,3124.7,3123.8,2.48912927]
[1767378467224,2.25573918,3124.7,3123.9,3.20112679]
[1767378467518,5.45605792,3124.7,3123.9,3.20112679]
[1767378468098,2.25573918,3124.7,3123.9,5.69025606]
[1767378468417,2.25573918,3124.7,3123.9,6.34318167]
[1767378469218,2.25573918,3124.7,3123.9,9.54430846]
[1767378469421,2.25573918,3124.7,3123.9,5.69025606]
[1767378469718,2.25573918,3124.7,3124.0,2.48912927]
[1767378470219,0.002,3124.7,3124.0,2.48912927]
[1767378471611,0.002,3124.7,3124.0,6.52906573]
[1767378472622,0.002,3124.7,3124.1,2.48912927]
[1767378472821,0.002,3124.7,3124.3,2.48912927]
[1767378475027,0.002,3124.7,3124.0,4.03993646]
[1767378475028,2.25573918,3124.7,3124.0,2.48912927]
[1767378475200,0.002,3124.7,3124.1,5.68996966]
[1767378475401,0.002,3124.7,3124.1,2.48912927]
[1767378475601,0.002,3124.7,3124.1,3.14214384]
[1767378475811,2.25573918,3124.7,3124.0,0.84]
[1767378476499,2.25573918,3124.7,3124.0,4.04099527]
[1767378477209,5.45608491,3124.7,3124.0,4.04099527]
[1767378477405,2.25573918,3124.7,3124.0,4.04099527]
[1767378477632,2.25573918,3124.7,3124.0,6.53012454]
[1767378477833,2.25573918,3124.7,3124.0,7.5032496]
[1767378478637,0.002,3124.9,3124.4,2.48912927]
[1767378480428,0.002,3124.9,3124.5,3.20051208]
[1767378480630,0.002,3125.3,3124.6,2.33331752]
[1767378480799,3.20171099,3125.3,3124.6,2.33331752]
[1767378481001,6.40142198,3125.3,3124.6,2.97060048]
[1767378481207,2.33633059,3125.2,3124.5,0.839]
[1767378481816,2.33633059,3125.2,3124.3,2.33331752]
[1767378482023,2.33633059,3125.0,3124.2,4.03973858]
[1767378482703,5.53635825,3125.0,3124.2,6.3730561]
[1767378483146,2.33633059,3124.9,3124.0,0.001]
[1767378483441,2.33633059,3124.8,3124.0,0.001]
[1767378484433,2.33633059,3124.8,3124.0,3.20201805]
[1767378484728,3.20030722,3124.7,3124.0,0.001]
[1767378484916,2.33633059,3124.6,3124.0,0.001]
[1767378486713,2.33633059,3124.4,3124.0,0.001]
[1767378486906,2.33633059,3124.3,3124.0,0.001]
[1767378488707,5.53714999,3124.2,3124.0,0.001]
[1767378489009,8.73796939,3124.2,3124.0,0.001]
[1767378489237,5.53714999,3124.2,3124.0,0.001]
[1767378493963,2.33633059,3124.1,3122.9,0.001]
[1767378494236,2.89004559,3124.1,3123.0,5.535306]
[1767378494444,2.89004559,3124.1,3123.0,5.53534523]
[1767378494638,2.89004559,3124.1,3123.0,2.33331752]
[1767378495354,2.89004559,3124.1,3122.9,0.001]
[1767378495564,2.33633059,3123.9,3122.9,0.001]
[1767378495919,6.40245854,3123.8,3122.9,0.001]
[1767378496121,2.33633059,3123.7,3122.9,0.001]
[1767378498033,5.53776483,3123.6,3122.9,0.001]
[1767378498433,8.73919907,3123.6,3122.9,0.001]
[1767378498835,2.33633059,3123.5,3122.9,0.001]
[1767378500351,3.20163923,3123.4,3122.9,0.001]
[1767378501933,5.53796982,3123.4,3122.9,0.001]
[1767378503551,2.33633059,3123.3,3122.9,0.001]
[1767378504142,5.53817485,3123.2,3122.9,0.001]
[1767378504335,2.33633059,3123.1,3122.9,0.001]
[1767378505657,2.33633059,3122.9,3121.6,3.88114355]
[1767378505823,2.33633059,3122.7,3121.7,0.839]
[1767378506018,2.33633059,3122.7,3121.7,4.04232689]
[1767378506237,2.33633059,3122.5,3121.7,0.839]
[1767378506436,0.62164741,3122.8,3121.7,0.839]
[1767378506437,3.2024075,3122.7,3121.9,2.33331752]
[1767378506653,5.53873809,3122.7,3121.9,2.33331752]
[1767378506833,3.82390704,3122.8,3121.9,2.33331752]
[1767378507652,2.36390625,3122.7,3121.9,2.33331752]
[1767378508350,5.56629965,3122.7,3121.9,5.53642655]
[1767378508654,5.56629965,3122.7,3121.9,2.33331752]
[1767378508655,8.76869305,3122.7,3121.9,2.33331752]
[1767378508855,5.56629965,3122.7,3122.0,2.32566585]
[1767378509345,6.50531196,3122.7,3122.0,2.32566585]
[1767378510051,9.70770536,3122.7,3122.0,2.32566585]
[1767378510653,6.50531196,3122.7,3122.0,2.32566585]
[1767378513359,6.50531196,3122.7,3122.0,5.52869637]
[1767378513649,3.30291856,3122.7,3122.1,2.42838085]
[1767378513854,2.36390625,3122.7,3122.1,2.42838085]
[1767378514524,5.56627258,3122.7,3122.1,2.42838085]
[1767378515226,8.76863891,3122.7,3122.1,2.42838085]
[1767378515557,2.37743016,3122.6,3121.9,0.001]
[1767378515720,5.57993386,3122.6,3121.9,0.001]
[1767378516067,2.37743016,3122.6,3121.9,2.42938085]
[1767378516226,5.57992657,3122.6,3122.0,2.42838085]
[1767378516750,2.37743016,3122.6,3122.0,2.42838085]
[1767378516955,5.57989448,3122.6,3122.0,2.42838085]
[1767378517451,3.20194678,3123.1,3122.2,2.42838085]
[1767378517625,6.40389356,3123.1,3122.2,2.42838085]
[1767378517821,2.37743016,3123.0,3122.2,2.42838085]
[1767378519652,5.57955591,3123.0,3122.2,2.42838085]
[1767378519955,5.57955591,3123.0,3122.3,2.42838085]
[1767378521652,8.78168166,3123.0,3122.3,2.42838085]
[1767378521857,2.37743016,3122.9,3122.0,2.42838085]
[1767378522059,2.37743016,3122.8,3122.0,2.42838085]
[1767378523140,2.37743016,3122.8,3122.1,2.42838085]
[1767378523759,5.57973938,3122.8,3122.1,2.42838085]
[1767378524124,4.04190643,3123.2,3122.1,2.42838085]
[1767378524125,2.37743016,3123.1,3122.1,2.42838085]
[1767378524329,0.84,3123.2,3122.2,2.67121893]
[1767378524330,2.37743016,3122.9,3122.2,2.67121893]
[1767378524531,2.37743016,3122.9,3122.2,2.42838085]
[1767378524732,2.37743016,3122.7,3122.0,2.42838085]
[1767378525334,2.37743016,3122.7,3122.1,2.42838085]
[1767378526555,5.57979434,3122.7,3122.1,2.42838085]
[1767378526859,2.37743016,3122.6,3122.1,2.42838085]
[1767378527852,3.20236418,3122.7,3122.1,2.42838085]
[1767378528457,5.57973627,3122.8,3122.1,2.42838085]
[1767378528771,0.002,3123.4,3122.6,2.42838085]
[1767378528772,5.57922849,3123.3,3122.6,2.42838085]
[1767378530770,0.002,3123.4,3122.6,2.42838085]
[1767378530771,3.20367189,3123.4,3122.7,2.42838085]
[1767378530949,0.002,3123.4,3122.7,2.42838085]
[1767378531149,0.002,3123.4,3122.7,2.99146327]
[1767378531673,3.20364365,3123.4,3122.7,2.99146327]
[1767378531849,0.002,3123.4,3122.7,2.99146327]
[1767378532178,3.20364377,3123.4,3122.7,2.99146327]
[1767378532672,0.002,3123.4,3122.7,2.99146327]
[1767378533174,0.002,3123.4,3122.8,2.99259191]
[1767378534553,0.002,3123.4,3122.8,6.19476472]
[1767378534760,0.002,3123.4,3122.9,2.42838085]
[1767378536076,2.37943016,3123.4,3122.9,2.42838085]
[1767378537366,0.002,3123.4,3123.0,2.42838085]
[1767378537566,0.002,3123.4,3123.2,2.42838085]
[1767378538553,2.37943016,3123.4,3122.9,2.42838085]
[1767378541472,2.37943016,3123.4,3122.7,2.43278728]
[1767378541473,5.58107357,3123.4,3122.7,2.43278728]
[1767378541667,2.31664222,3123.3,3122.7,2.43278728]
[1767378541864,2.31664222,3123.3,3122.7,3.08030827]
[1767378542067,2.31664222,3123.3,3122.8,2.43278728]
[1767378542266,0.002,3123.4,3122.8,2.43278728]
[1767378542459,0.002,3123.4,3122.9,2.43278728]
[1767378542983,0.002,3123.4,3123.0,2.43278728]
[1767378548990,2.31864222,3123.4,3122.6,2.43278728]
[1767378549167,2.70538499,3123.4,3122.6,2.43278728]
[1767378549671,2.31664222,3122.9,3122.5,0.001]
[1767378549866,2.31664222,3123.1,3122.5,2.43378728]
[1767378550476,3.20184578,3123.2,3122.5,2.43378728]
[1767378550802,5.518488,3123.2,3122.5,2.43378728]
[1767378551666,2.31664222,3123.1,3122.5,2.43378728]
[1767378553279,2.31664222,3123.0,3122.5,0.001]
[1767378553814,2.31664222,3122.8,3122.0,0.001]
[1767378553988,2.31664222,3122.8,3122.0,2.43378728]
[1767378554384,0.55185562,3123.1,3122.0,2.43378728]
[1767378554589,2.31664222,3123.2,3122.0,2.43378728]
[1767378554803,5.51862742,3123.1,3122.0,2.43378728]
[1767378555007,2.31664222,3123.0,3122.0,2.43378728]
[1767378556109,2.31664222,3123.0,3122.5,2.43378728]
[1767378556494,3.2019852,3123.1,3122.5,2.43378728]
[1767378556697,4.15803254,3123.1,3122.5,2.43378728]
[1767378557515,6.47467476,3123.1,3122.5,2.43378728]
[1767378558018,2.31664222,3123.0,3122.5,0.001]
[1767378560829,5.51871056,3123.0,3122.5,0.001]
[1767378561811,5.51871056,3123.0,3122.5,2.43378728]
[1767378562012,2.31664222,3123.0,3122.5,2.43378728]
[1767378562333,4.15803681,3123.1,3122.5,2.43378728]
[1767378563246,0.95604734,3123.1,3122.5,2.43378728]
[1767378563404,5.52033394,3123.4,3122.6,2.43278728]
[1767378564103,2.31664222,3123.3,3122.6,2.43278728]
[1767378565322,3.20184426,3123.2,3122.6,2.43278728]
[1767378565530,5.51848648,3123.2,3122.6,2.43278728]
[1767378566028,2.31664222,3123.1,3122.6,2.43278728]
[1767378566915,2.31664222,3123.1,3122.6,5.63523974]
[1767378568235,2.31664222,3123.1,3122.6,2.43278728]
[1767378568932,2.42144608,3123.0,3122.5,0.001]
[1767378569234,2.42144608,3123.0,3122.5,2.75971883]
[1767378569615,2.42144608,3123.0,3122.5,5.96227869]
[1767378569817,2.42144608,3123.0,3122.6,2.46928375]
[1767378570015,3.20189206,3123.2,3122.6,2.46928375]
[1767378570425,2.35471608,3123.1,3122.6,2.46928375]
[1767378570625,2.35471608,3123.1,3122.5,0.001]
[1767378570809,2.35471608,3123.1,3122.6,2.46928375]
[1767378571234,2.35471608,3123.1,3122.5,0.001]
[1767378572238,2.35471608,3123.1,3122.5,2.47028375]
[1767378572411,2.35471608,3123.0,3122.5,2.47028375]
[1767378573430,2.35471608,3123.0,3122.5,5.67283798]
[1767378573830,2.35471608,3123.0,3122.5,2.47028375]
[1767378574841,5.55680759,3123.0,3122.5,2.47028375]
[1767378575337,2.35471608,3122.9,3122.5,2.47028375]
[1767378576233,3.2039942,3123.1,3122.5,2.47028375]
[1767378576234,2.35671608,3123.1,3122.5,2.47028375]
[1767378576535,5.55867249,3123.1,3122.5,2.47028375]
[1767378576840,2.35471608,3123.0,3122.5,2.47028375]
[1767378578619,5.55678262,3123.0,3122.5,2.47028375]
[1767378579025,2.35471608,3122.9,3122.5,0.001]
[1767378579443,3.20399553,3123.1,3122.5,2.47028375]
[1767378579641,0.002,3123.4,3123.1,2.46928375]
[1767378579825,5.55585001,3123.9,3123.4,2.46928375]
[1767378580020,2.35471608,3123.9,3123.4,2.46928375]
[1767378580619,2.35471608,3124.2,3123.4,2.46928375]
[1767378580943,3.20092186,3124.1,3123.4,2.46928375]
[1767378581239,5.55563794,3124.1,3123.4,2.46928375]
[1767378581418,2.35471608,3124.1,3123.4,2.46928375]
[1767378582547,2.35471608,3124.1,3123.4,5.67089223]
[1767378583149,2.35471608,3124.1,3123.5,2.46928375]
[1767378583854,5.55565073,3124.1,3123.5,2.46928375]
[1767378584245,2.35471608,3124.0,3123.5,2.46928375]
[1767378584836,2.35471608,3124.2,3123.5,3.03637599]
[1767378585023,2.35471608,3124.2,3123.7,2.46928375]
[1767378585223,5.55733514,3124.4,3123.7,2.46928375]
[1767378586353,0.002,3124.4,3123.8,2.46928375]
[1767378586532,0.002,3124.4,3123.9,2.80021213]
[1767378587336,2.35671608,3124.4,3123.5,3.76860857]